fUST/lending_fUST_20241031
["ID","MTS","AMOUNT","RATE_DAILY","PERIOD"]
[341083363,1730355046101,-188.0,0.00032945,2]
[341083364,1730355046111,-188.0,0.00032945,2]
[341083365,1730355046121,-188.0,0.00032945,2]
[341083366,1730355046131,-188.0,0.00032945,2]
[341083368,1730355046141,-188.0,0.00032945,2]
[341083370,1730355046153,-188.0,0.00032945,2]
[341083371,1730355046165,-188.0,0.00032945,2]
[341083372,1730355046176,-188.0,0.00032945,2]
[341083373,1730355046186,-188.0,0.00032945,2]
[341083374,1730355046198,-188.0,0.00032945,2]
[341083375,1730355046208,-188.0,0.00032945,2]
[341083376,1730355046219,-188.0,0.00032945,2]
[341083377,1730355046230,-188.0,0.00032945,2]
[341083378,1730355046239,-188.0,0.00032945,2]
[341083379,1730355046249,-188.0,0.00032945,2]
[341083380,1730355046259,-188.0,0.00032945,2]
[341083382,1730355046269,-188.0,0.00032945,2]
[341083384,1730355046279,-188.0,0.00032945,2]
[341083386,1730355046292,-188.0,0.00032945,2]
[341083387,1730355046302,-188.0,0.00032945,2]
[341083388,1730355046314,-188.0,0.00032945,2]
[341083389,1730355046327,-188.0,0.00032945,2]
[341083390,1730355046337,-188.0,0.00032945,2]
[341083391,1730355046347,-188.0,0.00032945,2]
[341083392,1730355046357,-188.0,0.00032945,2]
[341083393,1730355046367,-188.0,0.00032945,2]
[341083395,1730355046376,-188.0,0.00032945,2]
[341083397,1730355046386,-188.0,0.00032945,2]
[341083399,1730355046397,-188.0,0.00032945,2]
[341083401,1730355046408,-188.0,0.00032945,2]
[341083402,1730355046418,-188.0,0.00032945,2]
[341083403,1730355046427,-188.0,0.00032945,2]
[341083404,1730355046437,-188.0,0.00032945,2]
[341083405,1730355046447,-188.0,0.00032945,2]
[341083407,1730355046458,-188.0,0.00032945,2]
[341083408,1730355046467,-188.0,0.00032945,2]
[341083409,1730355046476,-153.0,0.00032945,2]
[341083410,1730355046485,-153.0,0.00032945,2]
[341083411,1730355046493,-153.0,0.00032945,2]
[341083412,1730355046502,-153.0,0.00032945,2]
[341083413,1730355046511,-153.0,0.00032945,2]
[341083414,1730355046520,-153.0,0.00032945,2]
[341083416,1730355046529,-153.0,0.00032945,2]
[341083417,1730355046538,-153.0,0.00032945,2]
[341083418,1730355046548,-165.0,0.00033,2]
[341083419,1730355046557,-218.0,0.00033,2]
[341083420,1730355046567,-560.0,0.00033149,2]
[341083421,1730355046577,-151.0,0.0003315,14]
[341083422,1730355046588,-151.0,0.0003315,3]
[341083423,1730355046597,-151.0,0.0003315,14]
[341083424,1730355046606,-198.681319,0.0003315,14]
[341083425,1730355046616,-198.681319,0.0003315,14]
[341083426,1730355046625,-500.0,0.0003315,5]
[341083427,1730355046635,-151.0,0.0003315,14]
[341083428,1730355046644,-151.0,0.0003315,14]
[341083429,1730355046653,-151.0,0.0003315,14]
[341083430,1730355046662,-321.25083,0.0003315,14]
[341083431,1730355046672,-4469.43,0.0003315,5]
[341083432,1730355046681,-321.25083,0.0003315,14]
[341083433,1730355046691,-156.423023,0.0003315,14]
[341083434,1730355046700,-151.0,0.0003315,14]
[341083435,1730355046709,-151.0,0.0003315,14]
[341083436,1730355046718,-500.0,0.0003315,5]
[341083437,1730355046727,-151.0,0.0003315,14]
[341083438,1730355046737,-857.58,0.0003315,5]
[341083439,1730355046746,-1078.02,0.0003315,5]
[341083440,1730355046755,-500.0,0.0003315,5]
[341083441,1730355046765,-527.56371676,0.0003315,5]
[341083442,1730355046774,-3115.11,0.0003315,5]
[341083443,1730355046783,-151.0,0.0003315,14]
[341083444,1730355046792,-500.0,0.0003315,5]
[341083445,1730355046801,-500.0,0.0003315,5]
[341083446,1730355046811,-1547.02,0.0003315,5]
[341083447,1730355046821,-6120.32,0.0003315,3]
[341083448,1730355046832,-199.98864,0.0003315,14]
[341083449,1730355046843,-199.98864,0.0003315,14]
[341083450,1730355046854,-734.5,0.0003315,5]
[341083451,1730355046864,-287.812436,0.0003315,14]
[341083452,1730355046874,-568.93,0.0003315,5]
[341083453,1730355046884,-154.091258,0.0003315,14]
[341083454,1730355046896,-287.812436,0.0003315,14]
[341083455,1730355046906,-500.0,0.0003315,5]
[341083456,1730355046919,-1146.39,0.0003315,5]
[341083457,1730355046930,-2300.99,0.0003315,5]
[341083458,1730355046941,-218.0,0.00033151,2]
[341083459,1730355046952,-175.5,0.00033182,7]
[341083460,1730355046963,-150.5,0.0003331,120]
[341083461,1730355046974,-151.11097755,0.00033359,2]
[341083462,1730355046985,-758.8473208,0.0003337,2]
[341083463,1730355046996,-452.2402328,0.00033397,2]
[341083464,1730355047008,-500.0,0.00033423,2]
[341083465,1730355047018,-156.905941,0.00033424,14]
[341083466,1730355047027,-3000.0,0.00033424,90]
[341083467,1730355047038,-3000.0,0.00033424,90]
[341083468,1730355047049,-3000.0,0.00033424,90]
[341083469,1730355047058,-2480.905117,0.00033424,90]
[341083470,1730355047068,-230.58055278,0.00033424,5]
[341083471,1730355047148,-4469.43,0.00033424,5]
[341083472,1730355047158,-500.0,0.00033424,5]
[341083473,1730355047169,-857.58,0.00033424,5]
[341083474,1730355047180,-245.343142,0.00033424,14]
[341083475,1730355047190,-151.0,0.00033424,14]
[341083476,1730355047201,-245.343142,0.00033424,14]
[341083477,1730355047210,-1078.02,0.00033424,5]
[341083478,1730355047220,-500.0,0.00033424,5]
[341083479,1730355047230,-151.0,0.00033424,14]
[341083480,1730355047240,-151.0,0.00033424,5]
[341083481,1730355047250,-3115.11,0.00033424,5]
[341083482,1730355047260,-404.94273652,0.00033424,5]
[341083483,1730355047270,-500.0,0.00033424,5]
[341083484,1730355047281,-151.0,0.00033424,14]
[341083485,1730355047291,-1547.02,0.00033424,5]
[341083486,1730355047301,-6120.32,0.00033424,3]
[341083487,1730355047312,-151.0,0.00033424,14]
[341083488,1730355047321,-311.656124,0.00033424,14]
[341083489,1730355047332,-734.5,0.00033424,5]
[341083490,1730355047342,-311.656124,0.00033424,14]
[341083491,1730355047351,-568.93,0.00033424,5]
[341083492,1730355047361,-500.0,0.00033424,5]
[341083493,1730355047370,-1146.39,0.00033424,5]
[341083494,1730355047380,-2300.99,0.00033424,5]
[341083495,1730355047389,-151.318,0.0003343,7]
[341083496,1730355047398,-150.48,0.00033436,2]
[341083497,1730355047408,-196.636,0.00033436,2]
[341083498,1730355047417,-528.0,0.00033436,2]
[341083499,1730355047427,-2396.286,0.00033436,2]
[341083500,1730355047436,-1143.0,0.00033436,2]
[341083501,1730355047445,-150.112233,0.000335,18]
[341083502,1730355047455,-151.336,0.0003364,2]
[341083503,1730355047465,-7856.28760751,0.00033642,10]
[341083504,1730355047474,-151.0,0.00033642,14]
[341083505,1730355047483,-151.0,0.00033642,14]
[341083506,1730355047493,-160.0,0.00033643,10]
[341083507,1730355047505,-160.0,0.00033643,10]
[341083508,1730355047515,-500.0,0.00033644,120]
[341083509,1730355047525,-500.0,0.00033644,120]
[341083510,1730355047538,-500.0,0.00033644,120]
[341083511,1730355047549,-500.0,0.00033644,120]
[341083512,1730355047559,-500.0,0.00033644,120]
[341083513,1730355047568,-500.0,0.00033644,120]
[341083514,1730355047578,-500.0,0.00033644,120]
[341083515,1730355047588,-500.0,0.00033644,120]
[341083516,1730355047597,-500.0,0.00033644,120]
[341083517,1730355047606,-500.0,0.00033644,120]
[341083518,1730355047616,-500.0,0.00033644,120]
[341083519,1730355047626,-500.0,0.00033644,120]
[341083520,1730355047638,-500.0,0.00033644,120]
[341083521,1730355047647,-500.0,0.00033644,120]
[341083522,1730355047656,-500.0,0.00033644,120]
[341083523,1730355047666,-500.0,0.00033644,120]
[341083524,1730355047674,-500.0,0.00033644,120]
[341083525,1730355047684,-500.0,0.00033644,120]
[341083526,1730355047693,-500.0,0.00033644,120]
[341083527,1730355047702,-310.92,0.00033644,120]
[341083528,1730355047711,-500.0,0.00033644,120]
[341083529,1730355047720,-500.0,0.00033644,120]
[341083530,1730355047729,-500.0,0.00033644,120]
[341083531,1730355047739,-500.0,0.00033644,120]
[341083532,1730355047752,-534.81,0.00033644,120]
[341083533,1730355047761,-500.0,0.00033644,120]
[341083534,1730355047771,-500.0,0.00033644,120]
[341083535,1730355047780,-500.0,0.00033644,120]
[341083536,1730355047789,-171.82,0.00033644,120]
[341083537,1730355047798,-500.0,0.00033644,120]
[341083538,1730355047807,-500.0,0.00033644,120]
[341083539,1730355047816,-500.0,0.00033644,120]
[341083540,1730355047826,-500.0,0.00033644,120]
[341083541,1730355047835,-500.0,0.00033644,120]
[341083542,1730355047845,-500.0,0.00033644,120]
[341083543,1730355047854,-500.0,0.00033644,120]
[341083544,1730355047863,-500.0,0.00033644,120]
[341083545,1730355047872,-500.0,0.00033644,120]
[341083546,1730355047881,-457.11,0.00033644,120]
[341083547,1730355047890,-500.0,0.00033644,120]
[341083548,1730355047900,-500.0,0.00033644,120]
[341083549,1730355047909,-500.0,0.00033644,120]
[341083550,1730355047918,-500.0,0.00033644,120]
[341083551,1730355047927,-500.0,0.00033644,120]
[341083552,1730355047937,-500.0,0.00033644,120]
[341083553,1730355047946,-500.0,0.00033644,120]
[341083554,1730355047955,-500.0,0.00033644,120]
[341083555,1730355047964,-500.0,0.00033644,120]
[341083556,1730355047973,-500.0,0.00033644,120]
[341083557,1730355047982,-500.0,0.00033644,120]
[341083558,1730355047991,-500.0,0.00033644,120]
[341083559,1730355048000,-500.0,0.00033644,120]
[341083560,1730355048010,-240.74,0.00033644,120]
[341083561,1730355048019,-500.0,0.00033644,120]
[341083562,1730355048028,-500.0,0.00033644,120]
[341083563,1730355048037,-500.0,0.00033644,120]
[341083564,1730355048049,-346.079496,0.00033644,14]
[341083565,1730355048059,-346.079496,0.00033644,14]
[341083566,1730355048069,-159.910332,0.00033644,14]
[341083567,1730355048080,-175.5,0.00033687,7]
[341083568,1730355048091,-4469.43,0.00033698,5]
[341083569,1730355048100,-151.0,0.00033698,14]
[341083570,1730355048109,-151.0,0.00033698,14]
[341083571,1730355048119,-500.0,0.00033698,5]
[341083572,1730355048130,-151.0,0.00033698,14]
[341083573,1730355048141,-857.58,0.00033698,5]
[341083574,1730355048151,-1078.02,0.00033698,5]
[341083575,1730355048162,-500.0,0.00033698,5]
[341083576,1730355048172,-3115.11,0.00033698,5]
[341083577,1730355048182,-151.0,0.00033698,14]
[341083578,1730355048194,-500.0,0.00033698,5]
[341083579,1730355048205,-1547.02,0.00033698,5]
[341083580,1730355048215,-6120.32,0.00033698,3]
[341083581,1730355048225,-199.98864,0.00033698,14]
[341083582,1730355048235,-199.98864,0.00033698,14]
[341083583,1730355048245,-734.5,0.00033698,5]
[341083584,1730355048255,-287.812436,0.00033698,14]
[341083585,1730355048265,-568.93,0.00033698,5]
[341083586,1730355048275,-287.812436,0.00033698,14]
[341083587,1730355048286,-500.0,0.00033698,5]
[341083588,1730355048296,-1146.39,0.00033698,5]
[341083589,1730355048305,-2300.99,0.00033698,5]
[341083590,1730355048315,-210.9014948,0.00033781,2]
[341083591,1730355048325,-302.9343744,0.00033781,2]
[341083592,1730355048335,-153.0,0.00033781,2]
[341083593,1730355048345,-151.0,0.00033826,3]
[341083594,1730355048355,-758.8473208,0.0003387,2]
[341083595,1730355048366,-200.0,0.000339,120]
[341083596,1730355048375,-151.0,0.00033955,14]
[341083597,1730355048384,-198.681319,0.00033955,14]
[341083598,1730355048394,-198.681319,0.00033955,14]
[341083599,1730355048403,-151.0,0.00033955,14]
[341083600,1730355048412,-151.0,0.00033955,14]
[341083601,1730355048423,-151.0,0.00033955,14]
[341083602,1730355048432,-321.25083,0.00033955,14]
[341083603,1730355048442,-321.25083,0.00033955,14]
[341083604,1730355048451,-4469.43,0.00033972,5]
[341083605,1730355048460,-500.0,0.00033972,5]
[341083606,1730355048470,-857.58,0.00033972,5]
[341083607,1730355048479,-245.343142,0.00033972,14]
[341083608,1730355048489,-151.0,0.00033972,14]
[341083609,1730355048498,-245.343142,0.00033972,14]
[341083610,1730355048507,-1078.02,0.00033972,5]
[341083611,1730355048517,-175.31131038,0.00033972,5]
[341083612,1730355048526,-172.081823,0.00033972,14]
[341083613,1730355048535,-151.0,0.00033972,5]
[341083614,1730355048544,-3115.11,0.00033972,5]
[341083615,1730355048554,-500.0,0.00033972,5]
[341083616,1730355048563,-151.0,0.00033972,14]
[341083617,1730355048572,-1547.02,0.00033972,5]
[341083618,1730355048582,-6120.32,0.00033972,3]
[341083619,1730355048591,-151.0,0.00033972,14]
[341083620,1730355048601,-311.656124,0.00033972,14]
[341083621,1730355048610,-734.5,0.00033972,5]
[341083622,1730355048620,-311.656124,0.00033972,14]
[341083623,1730355048629,-568.93,0.00033972,5]
[341083624,1730355048638,-500.0,0.00033972,5]
[341083625,1730355048648,-1146.39,0.00033972,5]
[341083626,1730355048657,-2300.99,0.00033972,5]
[341083627,1730355048667,-150.112233,0.00034,20]
[341083628,1730355048676,-200.0,0.00034,120]
[341083629,1730355048686,-241.24485592,0.00034,14]
[341083630,1730355048695,-500.0,0.00034,120]
[341083631,1730355048705,-42036.501926,0.00034,10]
[341083632,1730355048714,-151.267,0.0003416,3]
[341083633,1730355048724,-175.5,0.00034191,7]
[341083634,1730355048737,-160.71063772,0.00034199,10]
[341083635,1730355048749,-171.47928617,0.00034199,10]
[341083636,1730355048758,-8193.37913126,0.000342,10]
[341083637,1730355048768,-8193.37913125,0.000342,10]
[341083638,1730355048777,-4096.68956564,0.000342,10]
[341083639,1730355048786,-4096.68956562,0.000342,10]
[341083640,1730355048795,-4096.68956562,0.000342,10]
[341083641,1730355048805,-4096.68956562,0.000342,10]
[341083642,1730355048814,-151.0,0.000342,14]
[341083643,1730355048889,-151.0,0.000342,14]
[341083644,1730355048899,-4096.68956564,0.000342,10]
[341083645,1730355048908,-4096.68956562,0.000342,10]
[341083646,1730355048918,-4096.68956562,0.000342,10]
[341083647,1730355048927,-4096.68956562,0.000342,10]
[341083648,1730355048937,-4469.43,0.00034246,5]
[341083649,1730355048946,-500.0,0.00034246,5]
[341083650,1730355048956,-857.58,0.00034246,5]
[341083651,1730355048966,-1078.02,0.00034246,5]
[341083652,1730355048975,-3115.11,0.00034246,5]
[341083653,1730355048985,-151.0,0.00034246,14]
[341083654,1730355048994,-379.58285182,0.00034246,5]
[341083655,1730355049003,-1547.02,0.00034246,5]
[341083656,1730355049012,-6120.32,0.00034246,3]
[341083657,1730355049021,-199.98864,0.00034246,14]
[341083658,1730355049031,-199.98864,0.00034246,14]
[341083659,1730355049041,-734.5,0.00034246,5]
[341083660,1730355049051,-287.812436,0.00034246,14]
[341083661,1730355049061,-568.93,0.00034246,5]
[341083662,1730355049071,-287.812436,0.00034246,14]
[341083663,1730355049081,-500.0,0.00034246,5]
[341083664,1730355049090,-1146.39,0.00034246,5]
[341083665,1730355049099,-2300.99,0.00034246,5]
[341083666,1730355049108,-346.079496,0.00034246,14]
[341083667,1730355049118,-346.079496,0.00034246,14]
[341083668,1730355049127,-151.0,0.00034274,120]
[341083669,1730355049136,-758.8473208,0.0003437,2]
[341083670,1730355049145,-8193.37913125,0.00034383,11]
[341083671,1730355049155,-178.374428,0.00034383,3]
[341083672,1730355049165,-150.0,0.000344,19]
[341083673,1730355049174,-150.112233,0.000345,11]
[341083674,1730355049183,-781.45,0.000345,2]
[341083675,1730355049193,-150.112233,0.000345,18]
[341083676,1730355049203,-150.112233,0.000345,12]
[341083677,1730355049214,-163.140969,0.0003452,14]
[341083678,1730355049224,-198.681319,0.0003452,14]
[341083679,1730355049235,-198.681319,0.0003452,14]
[341083680,1730355049245,-151.0,0.0003452,14]
[341083681,1730355049255,-151.0,0.0003452,14]
[341083682,1730355049265,-151.0,0.0003452,14]
[341083683,1730355049275,-321.25083,0.0003452,14]
[341083684,1730355049284,-4469.43,0.0003452,5]
[341083685,1730355049295,-321.25083,0.0003452,14]
[341083686,1730355049304,-151.0,0.0003452,14]
[341083687,1730355049314,-151.0,0.0003452,14]
[341083688,1730355049323,-500.0,0.0003452,5]
[341083689,1730355049334,-153.026356,0.0003452,14]
[341083690,1730355049345,-857.58,0.0003452,5]
[341083691,1730355049355,-245.343142,0.0003452,14]
[341083692,1730355049365,-151.0,0.0003452,14]
[341083694,1730355049375,-245.343142,0.0003452,14]
[341083695,1730355049384,-1078.02,0.0003452,5]
[341083696,1730355049394,-151.0,0.0003452,5]
[341083697,1730355049404,-3115.11,0.0003452,5]
[341083698,1730355049413,-151.0,0.0003452,14]
[341083699,1730355049423,-1547.02,0.0003452,5]
[341083700,1730355049434,-6120.32,0.0003452,3]
[341083701,1730355049444,-151.0,0.0003452,14]
[341083702,1730355049455,-311.656124,0.0003452,14]
[341083703,1730355049464,-734.5,0.0003452,5]
[341083704,1730355049475,-311.656124,0.0003452,14]
[341083705,1730355049484,-568.93,0.0003452,5]
[341083706,1730355049494,-500.0,0.0003452,5]
[341083707,1730355049504,-1146.39,0.0003452,5]
[341083708,1730355049514,-2300.99,0.0003452,5]
[341083709,1730355049523,-165.0,0.00034521,2]
[341083710,1730355049532,-218.0,0.00034521,2]
[341083711,1730355049541,-4546.50151372,0.00034591,12]
[341083712,1730355049551,-266.919323,0.000346,2]
[341083713,1730355049560,-154.2499951,0.00034603,2]
[341083714,1730355049569,-3427.46493913,0.00034629,2]
[341083715,1730355049579,-500.0,0.00034644,14]
[341083716,1730355049588,-500.0,0.00034644,14]
[341083717,1730355049598,-500.0,0.00034644,14]
[341083718,1730355049607,-500.0,0.00034644,14]
[341083719,1730355049617,-500.0,0.00034644,14]
[341083720,1730355049626,-500.0,0.00034644,14]
[341083721,1730355049636,-500.0,0.00034644,14]
[341083722,1730355049645,-500.0,0.00034644,14]
[341083723,1730355049655,-500.0,0.00034644,14]
[341083724,1730355049665,-4546.50151369,0.00034694,12]
[341083725,1730355049675,-175.5,0.00034695,15]
[341083726,1730355049685,-212.88,0.000347,30]
[341083727,1730355049694,-407.99,0.000347,30]
[341083728,1730355049704,-160.0,0.00034753,5]
[341083729,1730355049713,-283.446047,0.00034794,14]
[341083730,1730355049723,-151.0,0.00034794,14]
[341083731,1730355049733,-4469.43,0.00034794,5]
[341083732,1730355049742,-500.0,0.00034794,5]
[341083733,1730355049752,-857.58,0.00034794,5]
[341083734,1730355049762,-1078.02,0.00034794,5]
[341083735,1730355049771,-3115.11,0.00034794,5]
[341083736,1730355049781,-1547.02,0.00034794,5]
[341083737,1730355049792,-6120.32,0.00034794,3]
[341083738,1730355049801,-734.5,0.00034794,5]
[341083739,1730355049810,-568.93,0.00034794,5]
[341083740,1730355049820,-475.47450202,0.00034794,5]
[341083741,1730355049830,-1146.39,0.00034794,5]
[341083742,1730355049839,-2300.99,0.00034794,5]
[341083743,1730355049849,-4546.50151369,0.00034797,12]
[341083744,1730355049859,-1000.0,0.000348,3]
[341083745,1730355049868,-500.0,0.000348,2]
[341083746,1730355049877,-758.8473208,0.0003487,2]
[341083747,1730355049886,-151.816,0.0003489,18]
[341083748,1730355049896,-600.0,0.00034891,2]
[341083749,1730355049905,-4546.50151369,0.000349,13]
[341083750,1730355049914,-8193.37913125,0.000349,13]
[341083751,1730355049923,-307.0,0.000349,10]
[341083752,1730355049932,-217.71,0.000349,7]
[341083753,1730355049942,-163.28323502,0.000349,7]
[341083754,1730355049951,-3200.0,0.00034928,7]
[341083755,1730355049960,-150.0,0.00034928,7]
[341083756,1730355049969,-150.0,0.00034928,7]
[341083757,1730355049978,-500.668,0.00034928,7]
[341083758,1730355049988,-151.0,0.00034928,14]
[341083759,1730355049997,-199.98864,0.00034928,14]
[341083760,1730355050007,-199.98864,0.00034928,14]
[341083761,1730355050016,-287.812436,0.00034928,14]
[341083762,1730355050025,-287.812436,0.00034928,14]
[341083763,1730355050034,-346.079496,0.00034928,14]
[341083764,1730355050043,-346.079496,0.00034928,14]
[341083765,1730355050052,-74672.52179537,0.0003499,2]
[341083766,1730355050147,-500.0,0.00030684,5]
[341083767,1730355050157,-160.13322502,0.00030973,5]
[341083768,1730355050166,-210.15326146,0.00030973,3]
[341083769,1730355050175,-333.72782367,0.0003499,2]
[341083770,1730355050285,-261.17027996,0.0003499,2]
[341083771,1730355050301,-500.0,0.00030136,5]
[341083772,1730355050311,-7835.71248946,0.0003499,2]
[341083773,1730355050322,-7234.25258619,0.0003499,2]
[341083774,1730355138819,548.18742253,0.00027,30]
[341083775,1730355145579,853.62443478,0.00027,30]
[341083776,1730355150054,500.0,0.00027,30]
[341083777,1730355150497,500.0,0.00027,30]
[341083778,1730355150916,20.5504192,0.00027,30]
[341083779,1730355191806,177.22,0.0002,120]
[341083780,1730355580597,159.993633,0.00013973,2]
[341083789,1730355948183,-311.57764827,0.000249,2]
[341083790,1730355948205,-1231.7223598,0.00025,2]
[341083792,1730356033230,-768.2776402,0.00025,2]
[341083793,1730356033253,-177.2665003,0.00026621,2]
[341083794,1730356033275,-150.0,0.00026953,2]
[341083795,1730356033298,-255.4127252,0.00026995,2]
[341083796,1730356033335,-300.0,0.00026999,2]
[341083797,1730356033358,-300.0,0.00026999,2]
[341083798,1730356033383,-500.0,0.00027,30]
[341083799,1730356033409,-500.0,0.00027,30]
[341083800,1730356033434,-566.01193349,0.00027,30]
[341083801,1730356035100,-138.15637568,0.00027,30]
[341083802,1730356035124,-500.0,0.00027,30]
[341083803,1730356035150,-450.24252903,0.00027,30]
[341083809,1730356051087,-197.26427253,0.00027,30]
[341083810,1730356054101,-302.73572747,0.00027,30]
[341083811,1730356054125,-500.0,0.00027,30]
[341083812,1730356054151,-500.0,0.00027,30]
[341083813,1730356054176,-662.95207509,0.00027,30]
[341083814,1730356054200,-500.0,0.00027,30]
[341083815,1730356054225,-527.66147599,0.00027,30]
[341083816,1730356054250,-500.0,0.000271,2]
[341083817,1730356054273,-500.0,0.000271,2]
[341083818,1730356054298,-500.0,0.000271,2]
[341083819,1730356054322,-500.0,0.000271,2]
[341083820,1730356054347,-500.0,0.000271,2]
[341083821,1730356054372,-500.0,0.000271,2]
[341083822,1730356054397,-1917.97468663,0.00027214,2]
[341083856,1730356131060,394.0,0.0002,2]
[341083857,1730356146145,-208.999999,0.0002102,2]
[341083858,1730356146169,-150.0,0.00023,5]
[341083859,1730356146191,-300.0,0.00024999,2]
[341083860,1730356146217,-300.0,0.00024999,2]
[341083861,1730356146239,-8890.03468695,0.00025,120]
[341083862,1730356146268,-48444.11991321,0.00025,2]
[341083863,1730356146302,-7537.27368387,0.00025,2]
[341083864,1730356146324,-428.34,0.00025,2]
[341083865,1730356146349,-420.0,0.00027082,2]
[341083866,1730356146375,-520.47379317,0.00027214,2]
[341083867,1730356146402,-205.538137,0.00027256,2]
[341083868,1730356146430,-162.2310099,0.00027428,2]
[341083869,1730356146456,-175.474866,0.00027459,2]
[341083870,1730356146478,-420.0,0.00027499,2]
[341083871,1730356146504,-175.474866,0.00027528,2]
[341083872,1730356146529,-184.648134,0.00027573,2]
[341083873,1730356146552,-175.474866,0.00027597,2]
[341083874,1730356146576,-205.538137,0.0002794,2]
[341083875,1730356146600,-174.993663,0.00027972,2]
[341083876,1730356146622,-205.538137,0.00028625,2]
[341083877,1730356146648,-184.648134,0.0002901,2]
[341084017,1730356240657,-159.993633,0.00029349,2]
[341084018,1730356240669,-598.20099444,0.00029824,2]
[341084019,1730356240678,-120.84136869,0.0003,120]
[341084020,1730356240706,-30.15863131,0.0003,120]
[341084021,1730356240717,-3258.47773531,0.0003,2]
[341084022,1730356240728,-299.0,0.00030035,2]
[341084023,1730356240739,-400.0,0.00030035,2]
[341084024,1730356240749,-267.0,0.00030133,2]
[341084025,1730356240758,-175.85353071,0.00030135,2]
[341084026,1730356240767,-500.0,0.00030135,2]
[341084027,1730356240777,-500.0,0.00030135,2]
[341084028,1730356240787,-174.15284423,0.00030135,2]
[341084029,1730356240797,-500.0,0.00030135,2]
[341084030,1730356240806,-366.75427424,0.00030135,2]
[341084031,1730356240816,-500.0,0.00030135,2]
[341084032,1730356240825,-500.0,0.00030135,2]
[341084033,1730356240835,-500.0,0.00030135,2]
[341084034,1730356240844,-500.0,0.00030135,2]
[341084035,1730356240854,-500.0,0.00030135,2]
[341084036,1730356240863,-500.0,0.00030135,2]
[341084037,1730356240874,-500.0,0.00030135,2]
[341084038,1730356240883,-500.0,0.00030135,2]
[341084039,1730356240892,-289.21949543,0.00030135,2]
[341084040,1730356240902,-500.0,0.00030135,2]
[341084041,1730356240913,-500.0,0.00030135,2]
[341084042,1730356240925,-500.0,0.00030135,2]
[341084043,1730356240937,-423.17966938,0.00030135,2]
[341084044,1730356240947,-247.91779854,0.00030135,2]
[341084045,1730356240957,-500.0,0.00030135,2]
[341084046,1730356240967,-172.8615098,0.00030135,2]
[341084047,1730356240976,-500.0,0.00030135,2]
[341084048,1730356240985,-500.0,0.00030135,2]
[341084049,1730356240995,-500.0,0.00030135,2]
[341084050,1730356241006,-500.0,0.00030135,2]
[341084051,1730356241017,-500.0,0.00030135,2]
[341084052,1730356241028,-500.0,0.00030135,2]
[341084053,1730356241037,-500.0,0.00030135,2]
[341084054,1730356241048,-500.0,0.00030135,2]
[341084055,1730356241059,-500.0,0.00030135,2]
[341084056,1730356241070,-500.0,0.00030135,2]
[341084057,1730356241081,-500.0,0.00030135,2]
[341084058,1730356241090,-500.0,0.00030135,2]
[341084059,1730356241100,-500.0,0.00030135,2]
[341084060,1730356241110,-500.0,0.00030135,2]